bitfinex-derivatives/quotes_SOLF0:USTF0_20250903
["timestamp","ask_amount","ask_price","bid_price","bid_amount"]
[1756902247622,7.17625966,210.68,210.63,7.79]
[1756902247830,3.63791477,210.67,210.62,0.82621083]
[1756902248028,3.63791477,210.66,210.62,0.82621083]
[1756902248229,7.15,210.7,210.63,7.79]
[1756902248429,7.17561857,210.69,210.63,7.79]
[1756902248631,7.17561857,210.68,210.62,0.82621083]
[1756902248933,3.63759192,210.67,210.63,7.79]
[1756902249128,3.63759192,210.66,210.63,7.79]
[1756902249433,7.15,210.69,210.63,7.79]
[1756902249634,7.17558935,210.68,210.63,7.79]
[1756902249834,3.63757711,210.67,210.62,0.82621083]
[1756902250133,3.63757711,210.66,210.63,7.79]
[1756902250333,7.15,210.7,210.63,7.79]
[1756902250534,7.17723225,210.69,210.63,7.79]
[1756902250734,7.17723225,210.68,210.63,7.79]
[1756902251029,7.15,210.73,210.63,7.79]
[1756902251231,7.17804533,210.72,210.63,7.79]
[1756902251437,14.32804533,210.71,210.63,7.79]
[1756902251626,7.17804533,210.7,210.63,7.79]
[1756902251825,3.63880745,210.69,210.63,7.79]
[1756902252029,3.63880745,210.68,210.62,3.52961744]
[1756902252236,7.15,210.71,210.63,7.73]
[1756902252439,7.17785475,210.7,210.63,7.73]
[1756902252632,3.63871531,210.69,210.63,12.0015]
[1756902252936,11.50871531,210.68,210.63,4.2715]
[1756902253137,3.63871531,210.67,210.63,4.2715]
[1756902253337,7.87,210.68,210.64,7.73]
[1756902253536,3.6376174,210.67,210.63,4.2715]
[1756902253736,3.78593646,210.66,210.63,4.2715]
[1756902253937,7.87,210.68,210.63,4.2715]
[1756902253938,3.78593646,210.65,210.64,7.73]
[1756902254737,7.87,210.68,210.64,7.73]
[1756902254935,7.87,210.68,210.63,4.2715]
[1756902255128,7.87,210.68,210.64,7.73]
[1756902255332,7.87,210.73,210.64,7.73]
[1756902255534,7.87,210.71,210.64,7.73]
[1756902255731,3.53834047,210.7,210.64,7.73]
[1756902255932,11.40834047,210.69,210.62,8.55621083]
[1756902256133,3.53834047,210.68,210.62,8.55621083]
[1756902256428,7.87,210.69,210.62,8.55621083]
[1756902256631,3.53814747,210.68,210.62,8.55621083]
[1756902256837,7.87,210.69,210.62,8.55621083]
[1756902257033,3.53830979,210.68,210.62,8.55621083]
[1756902257236,7.87,210.69,210.62,8.55621083]
[1756902257436,3.53811552,210.68,210.62,8.55621083]
[1756902257631,7.87,210.69,210.62,8.55621083]
[1756902257840,3.53803096,210.68,210.62,8.55621083]
[1756902258028,7.87,210.69,210.62,12.82801083]
[1756902258233,3.53803776,210.68,210.62,12.82801083]
[1756902258434,7.87,210.69,210.62,12.82801083]
[1756902258633,3.53795713,210.68,210.62,12.82801083]
[1756902258834,7.87,210.69,210.62,12.82801083]
[1756902259035,3.54785738,210.68,210.62,12.82801083]
[1756902259235,7.87,210.69,210.62,12.82801083]
[1756902259430,3.54812107,210.68,210.62,12.82801083]
[1756902259635,7.87,210.69,210.62,12.82801083]
[1756902259841,3.54863414,210.68,210.62,12.82801083]
[1756902260147,7.87,210.69,210.62,12.82801083]
[1756902260439,3.54844257,210.68,210.62,12.82801083]
[1756902260639,7.87,210.69,210.62,12.82801083]
[1756902260833,3.54828665,210.68,210.62,12.82801083]
[1756902261032,7.87,210.69,210.62,12.82801083]
[1756902261231,3.54836461,210.68,210.62,12.82801083]
[1756902261434,7.87,210.69,210.62,12.82801083]
[1756902261637,3.54811897,210.68,210.62,12.82801083]
[1756902261842,7.87,210.69,210.62,12.82801083]
[1756902262043,3.54811897,210.68,210.62,12.82801083]
[1756902262341,7.87,210.69,210.62,12.82801083]
[1756902262540,3.54805217,210.68,210.62,12.82801083]
[1756902262740,3.54759566,210.67,210.59,7.73]
[1756902262937,7.87,210.65,210.59,7.73]
[1756902263142,3.54759566,210.64,210.59,0.82633835]
[1756902263340,3.54759566,210.64,210.6,7.73]
[1756902263841,7.87,210.65,210.6,7.73]
[1756902264041,3.74332786,210.64,210.59,0.82633835]
[1756902264340,7.87,210.69,210.6,7.73]
[1756902264543,7.4359817,210.68,210.6,7.73]
[1756902264739,7.4359817,210.67,210.6,7.73]
[1756902264936,3.74305858,210.66,210.6,7.73]
[1756902265140,3.74305858,210.65,210.59,7.80214496]
[1756902265338,3.74305858,210.64,210.59,7.80214496]
[1756902265539,7.87,210.67,210.6,7.73]
[1756902265736,3.74272866,210.66,210.6,7.73]
[1756902265941,3.74272866,210.65,210.6,7.73]
[1756902266133,3.74272866,210.64,210.59,5.09873835]
[1756902266333,7.87,210.72,210.6,7.73]
[1756902266538,10.57340661,210.7,210.6,7.73]
[1756902266842,7.87,210.68,210.6,7.73]
[1756902267044,3.74243155,210.67,210.6,7.73]
[1756902267241,3.74243155,210.66,210.6,7.73]
[1756902267441,3.74243155,210.65,210.6,7.73]
[1756902267744,3.74243155,210.64,210.6,7.73]
[1756902267943,7.87,210.66,210.6,7.73]
[1756902268143,3.7421039,210.65,210.6,7.73]
[1756902268346,11.6121039,210.64,210.6,7.73]
[1756902268538,7.87,210.64,210.6,7.73]
[1756902269139,7.87,210.69,210.6,7.73]
[1756902269335,3.74200803,210.68,210.61,7.73]
[1756902269540,11.61200803,210.67,210.61,7.73]
[1756902269740,7.87,210.65,210.61,7.73]
[1756902269941,11.61200803,210.64,210.61,7.73]
[1756902270142,7.87,210.64,210.61,7.73]
[1756902271940,7.87,210.64,210.6,7.73]
[1756902272145,7.87,210.64,210.59,5.09873835]
[1756902272349,7.87,210.64,210.6,7.73]
[1756902272550,7.87,210.64,210.59,5.09873835]
[1756902272738,7.87,210.64,210.6,7.73]
[1756902272943,7.87,210.64,210.59,5.09873835]
[1756902273146,7.87,210.64,210.6,7.73]
[1756902273448,7.87,210.64,210.59,0.82633835]
[1756902273647,7.87,210.64,210.6,7.73]
[1756902273851,7.87,210.64,210.59,0.82633835]
[1756902274147,7.87,210.64,210.6,7.73]
[1756902274343,7.87,210.64,210.59,0.82633835]
[1756902275141,7.87,210.64,210.6,7.73]
[1756902275348,7.87,210.69,210.6,7.73]
[1756902275542,7.87,210.67,210.6,7.73]
[1756902275739,3.7465885,210.66,210.6,7.73]
[1756902276042,7.87,210.64,210.6,7.73]
[1756902277049,7.87,210.64,210.59,0.82633835]
[1756902277243,7.87,210.64,210.6,7.73]
[1756902278244,7.87,210.64,210.59,0.82633835]
[1756902278539,7.87,210.64,210.6,7.73]
[1756902279240,3.74602801,210.63,210.6,7.73]
[1756902279446,7.87,210.69,210.59,0.82633835]
[1756902279645,3.74585746,210.68,210.59,0.82633835]
[1756902279846,11.61585746,210.67,210.59,0.82633835]
[1756902280042,3.74585746,210.66,210.59,0.82633835]
[1756902280349,11.61585746,210.65,210.59,0.82633835]
[1756902280548,3.74585746,210.64,210.59,0.82633835]
[1756902281045,7.87,210.63,210.6,7.73]
[1756902281252,7.87,210.68,210.6,7.73]
[1756902281550,7.46,210.66,210.6,7.73]
[1756902281749,3.74588735,210.65,210.6,7.73]
[1756902281949,7.46,210.63,210.6,7.73]
[1756902282154,3.74588735,210.62,210.6,7.73]
[1756902282342,7.46,210.63,210.6,7.73]
[1756902282545,3.745652,210.62,210.6,7.73]
[1756902282748,7.46,210.63,210.6,7.73]
[1756902282946,3.74491159,210.62,210.6,7.73]
[1756902283249,7.46,210.63,210.6,7.73]
[1756902283448,3.74467338,210.62,210.6,7.73]
[1756902283643,2.70340661,210.69,210.59,0.82633835]
[1756902283850,2.70340661,210.69,210.49,66.4911]
[1756902283851,2.70340661,210.63,210.53,7.78]
[1756902284051,14.95023457,210.62,210.53,7.78]
[1756902284251,7.46,210.6,210.53,7.78]
[1756902284553,7.46,210.58,210.53,7.78]
[1756902284753,7.46,210.62,210.53,7.78]
[1756902284946,7.46,210.6,210.53,7.78]
[1756902285148,3.66447459,210.59,210.53,7.78]
[1756902285450,11.12447459,210.58,210.52,12.0538]
[1756902285648,7.46,210.58,210.52,12.0538]
[1756902287353,7.46,210.58,210.51,7.78]
[1756902287653,3.7607504,210.57,210.51,7.78]
[1756902287852,7.46,210.58,210.5,0.82653461]
[1756902287853,3.7607504,210.56,210.5,0.82653461]
[1756902288048,7.46,210.58,210.51,7.78]
[1756902288354,3.76073288,210.57,210.51,7.78]
[1756902288552,7.46,210.58,210.51,7.78]
[1756902288747,3.75876555,210.57,210.51,7.78]
[1756902288947,11.32,210.66,210.52,12.0538]
[1756902288948,11.21876555,210.56,210.52,12.0538]
[1756902289152,2.70340661,210.61,210.52,12.0538]
[1756902289347,7.46,210.59,210.52,12.0538]
[1756902289651,3.75726189,210.58,210.52,4.2738]
[1756902289852,7.46,210.56,210.52,12.0538]
[1756902290056,2.70340661,210.61,210.52,12.0538]
[1756902290248,7.33096178,210.6,210.52,12.0538]
[1756902290450,7.46,210.58,210.52,12.0538]
[1756902290651,7.46,210.56,210.52,12.0538]
[1756902290847,7.46,210.6,210.52,7.78]
[1756902291154,7.46,210.58,210.52,7.78]
[1756902291348,3.75553227,210.57,210.52,7.78]
[1756902291549,7.46,210.6,210.52,7.78]
[1756902291749,7.46,210.58,210.52,7.78]
[1756902291949,3.75444548,210.57,210.52,7.78]
[1756902292150,7.46,210.6,210.52,7.78]
[1756902292353,7.46,210.58,210.52,7.78]
[1756902292549,3.75367702,210.57,210.52,7.78]
[1756902292744,7.46,210.6,210.52,7.78]
[1756902293057,7.46,210.58,210.52,7.78]
[1756902293352,7.46,210.56,210.51,4.274]
[1756902293547,7.46,210.6,210.51,7.78]
[1756902293756,3.75279571,210.59,210.51,7.78]
[1756902294054,3.75279571,210.58,210.51,7.78]
[1756902294255,7.46,210.6,210.51,7.78]
[1756902294449,7.46,210.58,210.52,4.2738]
[1756902297452,7.46,210.58,210.51,7.78]
[1756902298456,7.46,210.58,210.51,12.054]
[1756902303061,7.46,210.59,210.51,12.054]
[1756902303363,7.46,210.57,210.51,12.054]
[1756902303562,11.5,210.65,210.52,7.78]
[1756902303563,7.46,210.55,210.52,7.78]
[1756902303865,1.73268661,210.59,210.51,9.51268661]
[1756902304161,9.19268661,210.59,210.51,9.51268661]
[1756902304361,9.19268661,210.59,210.51,7.78]
[1756902304362,1.73268661,210.57,210.51,7.78]
[1756902304551,1.73268661,210.57,210.52,4.2738]
[1756902304757,9.19268661,210.57,210.53,7.78]
[1756902304956,9.19268661,210.57,210.52,4.2738]
[1756902305162,9.19268661,210.57,210.53,12.0536]
[1756902305363,9.19268661,210.57,210.53,4.2736]
[1756902305562,9.19268661,210.57,210.53,12.0536]
[1756902305960,1.73268661,210.57,210.53,7.78]
[1756902306456,7.46,210.56,210.53,7.78]
[1756902307259,7.46,210.56,210.51,4.274]
[1756902307457,1.73268661,210.57,210.51,4.274]
[1756902307659,9.19268661,210.57,210.51,12.054]
[1756902309573,7.46,210.54,210.51,7.78]
[1756902309773,1.73268661,210.55,210.51,7.78]
[1756902310072,7.46,210.54,210.51,7.78]
[1756902310272,1.73268661,210.55,210.51,7.78]
[1756902310572,7.46,210.54,210.51,7.78]
[1756902310772,1.73268661,210.55,210.49,7.78]
[1756902310974,1.73268661,210.55,210.49,9.51268661]
[1756902311575,9.19268661,210.55,210.49,12.0544]
[1756902312873,7.79,210.54,210.51,7.28]
[1756902313770,7.79,210.58,210.5,1.73268661]
[1756902313965,5.49089269,210.57,210.51,7.28]
[1756902314169,1.73268661,210.57,210.51,7.28]
[1756902314875,7.79,210.58,210.52,1.73268661]
[1756902315073,7.79,210.6,210.53,7.28]
[1756902315273,3.75936041,210.59,210.53,7.28]
[1756902315473,1.73268661,210.61,210.52,1.73268661]
[1756902315474,3.75936041,210.58,210.52,1.73268661]
[1756902315776,9.52268661,210.59,210.53,7.28]
[1756902315975,11.55115733,210.58,210.55,7.28]
[1756902316176,7.79,210.58,210.55,7.28]
[1756902316373,1.73268661,210.59,210.5,2.5593783]
[1756902316578,11.55189106,210.58,210.51,7.28]
[1756902316772,7.79,210.58,210.51,7.28]
[1756902317078,1.73268661,210.59,210.53,11.5536]
[1756902317079,9.52268661,210.59,210.53,11.5536]
[1756902317277,3.76256028,210.58,210.53,4.2736]
[1756902317491,7.79,210.58,210.54,7.28]
[1756902318178,7.79,210.58,210.55,7.28]
[1756902318379,3.76312322,210.57,210.55,7.28]
[1756902318578,7.79,210.58,210.55,7.28]
[1756902319082,7.79,210.57,210.55,7.28]
[1756902320378,11.55565813,210.56,210.5,7.28]
[1756902320578,7.79,210.56,210.5,7.28]
[1756902320974,7.79,210.56,210.49,119.33268661]
[1756902321276,1.73268661,210.57,210.5,7.28]
[1756902321480,3.76492373,210.56,210.5,7.28]
[1756902321681,1.73268661,210.57,210.5,7.28]
[1756902321982,3.76492373,210.56,210.53,4.2736]
[1756902322282,9.52268661,210.57,210.54,7.28]
[1756902322482,11.55691915,210.56,210.54,7.28]
[1756902322682,7.79,210.56,210.54,7.28]
[1756902323377,3.76905745,210.55,210.51,4.274]
[1756902323582,7.79,210.56,210.49,4.2744]
[1756902323884,3.76832281,210.55,210.48,9.01268661]
[1756902324177,7.79,210.56,210.48,9.01268661]
[1756902324377,3.76979661,210.55,210.48,9.01268661]
[1756902324583,7.79,210.56,210.48,9.01268661]
[1756902324785,3.76984224,210.55,210.48,9.01268661]
[1756902325084,7.79,210.56,210.5,4.2742]
[1756902325384,3.7711186,210.55,210.5,1.73268661]
[1756902325576,7.79,210.57,210.54,7.28]
[1756902325780,3.77135676,210.56,210.54,7.28]
[1756902326085,7.79,210.57,210.54,7.28]
[1756902326285,3.77296775,210.56,210.54,7.28]
[1756902326484,3.77296775,210.55,210.54,7.28]
[1756902327885,3.77296775,210.56,210.54,7.28]
[1756902328086,3.77296775,210.55,210.54,7.28]
[1756902328289,11.56296775,210.55,210.52,11.5538]
[1756902328588,3.77296775,210.54,210.52,11.5538]
[1756902328778,7.79,210.55,210.52,7.28]
[1756902329086,3.777455,210.54,210.52,7.28]
[1756902329288,7.79,210.55,210.52,7.28]
[1756902329587,7.6597942,210.54,210.52,7.28]
[1756902329886,3.77808133,210.53,210.52,7.28]
[1756902345298,1.73268661,210.6,210.54,4.2735]
[1756902345499,7.28675182,210.59,210.54,11.6435]
[1756902345799,7.28675182,210.58,210.54,11.6435]
[1756902345993,7.87,210.56,210.54,11.6435]
[1756902346189,7.28675182,210.55,210.54,11.6435]
[1756902346900,3.66220122,210.55,210.54,11.6435]
[1756902349496,11.53220122,210.55,210.54,4.2735]
[1756902350202,7.87,210.61,210.54,9.10268661]
[1756902352199,1.73268661,210.63,210.58,7.37]
[1756902352399,7.87,210.62,210.58,7.37]
[1756902352600,1.73268661,210.63,210.58,7.37]
[1756902352790,7.87,210.62,210.58,7.37]
[1756902353197,1.73268661,210.63,210.58,7.37]
[1756902353395,7.87,210.62,210.58,7.37]
[1756902353793,1.73268661,210.63,210.58,7.37]
[1756902354501,1.73268661,210.59,210.53,7.37]
[1756902354797,1.73268661,210.59,210.54,4.2734]
[1756902355000,7.87,210.58,210.52,119.07268661]
[1756902355201,7.87,210.58,210.53,7.37]
[1756902355401,7.87,210.58,210.52,119.07268661]
[1756902356002,7.87,210.58,210.56,7.37]
[1756902358904,5.31068818,210.66,210.56,11.643]
[1756902358905,9.60268661,210.62,210.56,11.643]
[1756902360707,7.87,210.62,210.56,11.643]
[1756902360907,9.60268661,210.61,210.56,4.273]
[1756902361108,9.60268661,210.61,210.57,7.37]
[1756902361305,9.60268661,210.61,210.56,4.273]
[1756902361605,9.60268661,210.61,210.57,7.37]
[1756902361805,9.60268661,210.61,210.56,4.273]
[1756902362106,9.60268661,210.61,210.57,11.6428]
[1756902362307,7.87,210.6,210.57,11.6428]
[1756902362507,9.60268661,210.66,210.59,7.37]
[1756902362697,1.73268661,210.63,210.56,1.73268661]
[1756902362901,9.60268661,210.63,210.56,1.73268661]
[1756902363404,9.60268661,210.63,210.58,4.2726]
[1756902363604,9.60268661,210.63,210.56,1.73268661]
[1756902363605,7.87,210.63,210.57,7.37]
[1756902363805,7.87,210.63,210.57,11.6429]
[1756902364004,1.73268661,210.64,210.57,11.6429]
[1756902364204,7.87,210.63,210.57,11.6429]
[1756902367308,7.87,210.63,210.58,4.2726]
[1756902367607,7.87,210.65,210.58,4.2726]
[1756902368506,7.87,210.65,210.59,4.2724]
[1756902368707,7.87,210.65,210.59,11.6424]
[1756902373514,7.56,210.68,210.6,7.47]
[1756902375109,7.56,210.68,210.63,7.47]
[1756902375313,7.56,210.68,210.62,4.2718]
[1756902375615,7.56,210.68,210.63,7.47]
[1756902376107,7.56,210.68,210.59,93.2857169]
[1756902376313,7.56,210.68,210.64,7.47]
[1756902376612,7.56,210.68,210.63,4.2715]
[1756902377208,7.56,210.68,210.64,7.47]
[1756902377402,7.56,210.68,210.63,4.2715]
[1756902378213,97.00578575,210.7,210.64,4.2714]
[1756902378514,89.44578575,210.7,210.63,2.7057169]
[1756902378710,7.56,210.73,210.63,2.7057169]
[1756902378915,7.56,210.73,210.64,7.47]
[1756902380011,7.56,210.73,210.69,7.47]
[1756902380511,7.56,210.76,210.69,7.47]
[1756902382813,7.56,210.76,210.69,11.7404]
[1756902383005,7.56,210.76,210.69,7.47]
[1756902383410,2.7057169,210.75,210.65,7.47]
[1756902383615,7.56,210.74,210.65,7.47]
[1756902384012,2.7057169,210.72,210.6,7.47]
[1756902384221,7.56,210.71,210.6,7.47]
[1756902384614,7.56,210.71,210.65,7.47]
[1756902388918,7.56,210.71,210.65,11.7412]
[1756902389720,7.56,210.71,210.65,7.47]
[1756902392021,7.56,210.71,210.64,7.47]
[1756902395720,7.56,210.71,210.64,11.7414]
[1756902395920,7.56,210.71,210.64,7.47]
[1756902398920,7.56,210.71,210.62,4.2718]
[1756902399122,10.2657169,210.71,210.62,4.2718]
[1756902400122,10.2657169,210.71,210.63,7.47]
[1756902400528,7.56,210.7,210.63,11.7416]
[1756902400927,7.56,210.7,210.59,7.47]
[1756902403024,7.56,210.7,210.63,12.1015]
[1756902404830,7.56,210.7,210.63,7.83]
[1756902405926,7.56,210.7,210.56,66.4707]
[1756902405927,7.56,210.7,210.59,7.83]
[1756902406233,7.79,210.67,210.59,7.83]
[1756902406937,7.79,210.67,210.59,12.1023]
[1756902407830,7.79,210.67,210.6,4.2722]
[1756902409832,7.79,210.67,210.59,7.83]
[1756902412135,2.7057169,210.65,210.58,4.2726]
[1756902412333,2.7057169,210.65,210.56,7.83]
[1756902412538,7.79,210.64,210.56,7.83]
[1756902413540,7.79,210.64,210.53,7.83]
[1756902414941,2.7057169,210.65,210.53,4.2736]
[1756902415137,7.79,210.64,210.54,7.83]
[1756902415338,2.7057169,210.62,210.54,7.83]
[1756902415539,7.79,210.62,210.54,7.83]
[1756902415744,3.55065648,210.61,210.54,7.83]
[1756902415942,3.55065648,210.6,210.54,7.83]
[1756902416142,7.79,210.62,210.54,7.83]
[1756902416342,3.54989233,210.61,210.54,7.83]
[1756902416535,3.54989233,210.6,210.54,7.83]
[1756902416742,7.79,210.62,210.54,7.83]
[1756902416942,3.54991689,210.61,210.54,7.83]
[1756902417142,7.79,210.62,210.54,7.83]
[1756902417143,3.54991689,210.6,210.54,7.83]
[1756902417443,7.79,210.62,210.54,7.83]
[1756902417646,3.54957127,210.61,210.54,7.83]
[1756902417945,3.54957127,210.6,210.54,7.83]
[1756902418145,7.79,210.62,210.54,7.83]
[1756902418439,3.55009881,210.61,210.54,7.83]
[1756902418645,3.5493542,210.6,210.54,7.83]
[1756902418846,7.79,210.62,210.54,7.83]
[1756902419146,3.54898866,210.61,210.54,7.83]
[1756902419447,11.33814225,210.6,210.54,7.83]
[1756902419639,7.79,210.6,210.54,7.83]
[1756902421240,10.4957169,210.6,210.54,7.83]
[1756902421440,7.79,210.58,210.51,326.87]
[1756902422244,7.79,210.56,210.48,7.83]
[1756902422840,3.82497481,210.55,210.48,7.83]
[1756902423044,3.82497481,210.54,210.48,7.83]
[1756902423245,7.79,210.56,210.47,0.82679971]
[1756902423246,3.82497481,210.53,210.47,0.82679971]
[1756902423453,7.79,210.56,210.48,7.83]
[1756902423653,3.82346093,210.55,210.48,7.83]
[1756902423842,3.82346093,210.54,210.48,7.83]
[1756902424047,3.82346093,210.53,210.47,0.82679971]
[1756902424353,7.79,210.56,210.48,7.83]
[1756902424653,3.82204257,210.55,210.48,7.83]
[1756902424849,3.82204257,210.54,210.48,7.83]
[1756902425049,3.82204257,210.53,210.47,0.82679971]
[1756902425250,7.79,210.56,210.48,7.83]
[1756902425450,3.81857463,210.55,210.48,7.83]
[1756902425649,7.79,210.53,210.47,0.82679971]
[1756902425844,3.81857463,210.52,210.47,0.82679971]
[1756902426050,3.81857463,210.51,210.47,0.82679971]
[1756902426245,7.79,210.56,210.48,7.83]
[1756902426450,7.35380508,210.55,210.48,7.83]
[1756902426655,3.81605883,210.54,210.48,7.83]
[1756902426954,3.81605883,210.53,210.47,0.82679971]
[1756902427154,7.79,210.51,210.48,7.83]
[1756902427451,1.73341929,210.52,210.48,7.83]
[1756902427752,1.73341929,210.52,210.47,0.82679971]
[1756902427952,9.52341929,210.54,210.48,7.83]
[1756902428150,3.8151845,210.53,210.47,0.82679971]
[1756902428456,3.8151845,210.52,210.48,7.83]
[1756902428657,9.52341929,210.54,210.48,7.83]
[1756902428857,3.81447299,210.53,210.48,7.83]
[1756902429056,3.81447299,210.52,210.47,0.82679971]
[1756902429257,9.52341929,210.54,210.48,7.83]
[1756902429454,3.81158316,210.53,210.47,0.82679971]
[1756902429659,3.81051112,210.52,210.48,7.83]
[1756902429854,9.52341929,210.54,210.48,7.83]
[1756902430054,3.8102231,210.53,210.47,7.83]
[1756902430255,3.8102231,210.52,210.47,7.83]
[1756902430560,1.73341929,210.53,210.47,7.83]
[1756902430760,3.81139559,210.52,210.46,1.73341929]
[1756902430959,1.73341929,210.53,210.47,7.83]
[1756902431162,1.73341929,210.53,210.46,9.56341929]
[1756902431163,11.60138992,210.52,210.46,9.56341929]
[1756902431362,5.54428435,210.51,210.46,7.83]
[1756902431657,7.71,210.49,210.46,7.83]
[1756902431861,1.73341929,210.51,210.46,7.83]
[1756902432057,7.71,210.49,210.46,7.83]
[1756902432655,1.73341929,210.49,210.43,7.38]
[1756902436064,7.71,210.47,210.43,7.38]
[1756902436460,1.73341929,210.49,210.43,7.38]
[1756902438562,88.80769864,210.55,210.43,7.38]
[1756902438766,1.73341929,210.48,210.43,7.38]
[1756902438967,1.73341929,210.48,210.42,7.38]
[1756902439167,7.71,210.49,210.42,7.38]
[1756902439469,9.44341929,210.49,210.42,7.38]
[1756902439664,9.44341929,210.49,210.43,4.2756]
[1756902440368,9.44341929,210.49,210.42,7.38]
[1756902441070,3.78864978,210.48,210.42,7.38]
[1756902441263,9.44341929,210.49,210.42,7.38]
[1756902441463,3.7882662,210.48,210.42,7.38]
[1756902441664,9.44341929,210.49,210.42,7.38]
[1756902441869,3.7882588,210.48,210.42,7.38]
[1756902442070,9.44341929,210.49,210.42,7.38]
[1756902442266,3.78825427,210.48,210.38,8.20708465]
[1756902442465,138.74769864,210.55,210.38,7.38]
[1756902442466,1.73341929,210.41,210.38,7.38]
[1756902442764,9.44341929,210.41,210.38,7.38]
[1756902443265,1.73341929,210.41,210.33,1.73341929]
[1756902443569,1.73341929,210.42,210.34,7.38]
[1756902443971,1.73341929,210.42,210.35,7.38]
[1756902445469,5.31068818,210.53,210.32,6.83858089]
[1756902445674,9.44341929,210.45,210.38,1.73341929]
[1756902445877,7.71,210.45,210.39,7.38]
[1756902446069,1.73341929,210.44,210.37,7.38]
[1756902446270,7.71,210.46,210.37,7.38]
[1756902446476,1.73341929,210.44,210.37,7.38]
[1756902446969,1.73341929,210.44,210.38,4.2766]
[1756902447176,1.73341929,210.44,210.39,7.38]
[1756902447977,94.11838682,210.55,210.41,7.38]
[1756902447978,7.71,210.54,210.41,7.38]
[1756902448171,1.73341929,210.49,210.41,7.38]
[1756902448379,3.78263398,210.48,210.41,7.38]
[1756902449078,3.78263398,210.48,210.42,4.2758]
[1756902449678,1.73341929,210.47,210.41,7.38]
[1756902450079,3.78470693,210.46,210.41,7.38]
[1756902450379,1.73341929,210.47,210.41,7.38]
[1756902450570,3.7855743,210.46,210.4,6.00971929]
[1756902450776,1.73341929,210.47,210.41,7.38]
[1756902450969,3.78478673,210.46,210.4,6.00971929]
[1756902451174,1.73341929,210.47,210.41,11.656]
[1756902451374,3.78535682,210.46,210.42,7.38]
[1756902451576,9.44341929,210.49,210.42,7.38]
[1756902451775,3.78550563,210.48,210.42,7.38]
[1756902452070,3.78550563,210.47,210.42,7.38]
[1756902452271,1.73341929,210.48,210.42,7.38]
[1756902452476,3.78646983,210.47,210.41,4.276]
[1756902452676,1.73341929,210.48,210.42,7.38]
[1756902452878,3.78646286,210.47,210.42,7.38]
[1756902453081,1.73341929,210.48,210.42,7.38]
[1756902453274,3.78730554,210.47,210.42,7.38]
[1756902453478,1.73341929,210.48,210.42,7.38]
[1756902453779,7.71,210.46,210.42,7.38]
[1756902453982,1.73341929,210.48,210.42,7.38]
[1756902454175,3.78741671,210.47,210.41,4.276]
[1756902454476,3.78741671,210.46,210.42,4.2758]
[1756902454679,7.71,210.49,210.43,7.38]
[1756902454879,7.71,210.47,210.43,7.38]
[1756902455072,3.78852898,210.46,210.43,7.38]
[1756902455277,7.71,210.47,210.43,7.38]
[1756902455578,3.78929456,210.46,210.43,7.38]
[1756902455775,7.71,210.47,210.43,7.38]
[1756902455976,11.49947765,210.46,210.43,7.38]
[1756902456177,3.7906101,210.45,210.4,7.38]
[1756902456376,1.73341929,210.46,210.4,7.38]
[1756902456679,7.71,210.44,210.4,7.38]